Cogmind - Beta 9.3 @@@ ROGUE MODE // 2020.01.06 @ 12:44:57 Player: Klin Result: Destroyed by G-47 Trooper with Particle Gun Performance ------------- Evolutions (0) 0 Regions Visited (1) 200 Robots Destroyed (19) 95 Value Destroyed (464) 464 Prototype IDs (4) 80 Alien Tech Used (0) 0 Bonus (0) 0 TOTAL SCORE: 839 Bonus ------- None Cogmind --------- Core Integrity 0/250 Matter 290/300 Energy 250/250 System Corruption 0% Temperature Cool (97) Movement Core (350) Ox6 Location -10/Materials Parts ------- > --- POWER (1) -------- Ion Engine > --- PROPULSION (2) --- (None) > --- UTILITY (2) ------ Large Storage Unit Targeting Computer > --- WEAPON (2) ------- (None) > --- INVENTORY (10) --- Ion Engine Large Storage Unit Weight Redist. System Structural Scanner Visual Processing Unit Sensor Array Seismic Analyzer High-powered Tractor Beam Peak State ------------ > --- POWER ------------ Ion Engine > --- PROPULSION ------- Aluminum Leg Aluminum Leg > --- UTILITY ---------- Large Storage Unit Targeting Computer > --- WEAPON ----------- Beam Rifle Beam Rifle > --- INVENTORY -------- Ion Engine Large Storage Unit Weight Redist. System Structural Scanner Structural Scanner Visual Processing Unit Sensor Array High-powered Tractor Beam [Rating: 10] Favorites ----------- Power Ion Engine Engine Ion Engine Propulsion Aluminum Leg Leg Aluminum Leg Utility Targeting Computer Storage Large Storage Unit Processor Targeting Computer Weapon Beam Rifle Energy Gun Beam Rifle Build | -11 -10 ------- Run | Scr Mat Slots Evolved . | . . Power . | . . Propulsion . | . . Utility . | . . Weapon . | . . Parts Attached 19 | 6 13 Power 2 | 1 1 Engine 2 | 1 1 Core . | . . Reactor . | . . Propulsion 5 | 2 3 Treads . | . . Leg 5 | 2 3 Wheel . | . . Hover . | . . Flight . | . . Utility 3 | 1 2 Device . | . . Storage 2 | 1 1 Processor 1 | . 1 Hackware . | . . Protection . | . . Artifact . | . . Weapon 9 | 2 7 Energy Gun 9 | 2 7 Energy Cannon . | . . Ballistic Gun . | . . Ballistic Cannon . | . . Launcher . | . . Special Weapon . | . . Impact Weapon . | . . Slashing Weapon . | . . Piercing Weapon . | . . Special Melee Weapon . | . . Unidentified Prototypes . | . . Parts Lost 11 | . 11 Power 1 | . 1 Propulsion 3 | . 3 Utility . | . . Weapon 7 | . 7 Highest Loss Streak 6 | . 6 Average Slot Usage (%) 93 | . 93 Engine 12 | . 12 Leg 26 | . 26 Storage 14 | . 14 Processor 12 | . 12 Energy Gun 25 | . 25 Naked Turns . | . . Heaviest Build 27 | 11 27 Greatest Support 20 | 3 20 Greatest Overweight (x) 7 | 3 7 Average Overweight (x) 1 | 1 1 Largest Inventory Capacity 10 | 6 10 Average Capacity 8 | 5 8 Most Carried 10 | 4 10 Average Carried 7 | 1 7 Final Capacity 10 | 6 10 Final Carried 8 | 2 8 Class Distribution -------------------- 100% | Mutant Dominant Class ---------------- Mutant | -10/Materials Resources | -11 -10 ----------- Run | Scr Mat Matter Collected 350 | 203 147 Remotely . | . . Salvage Created 585 | . 585 Parts 42 | . 42 Haulers Intercepted . | . . Recyclers Shooed 1 | . 1 Parts Field Recycled . | . . Retrieved Matter . | . . Parts Self-Destructed . | . . Prevented . | . . Kills | -11 -10 ------- Run | Scr Mat Combat Hostiles Destroyed 17 | . 17 Guns 17 | . 17 Classes Destroyed 4 | . 4 Worker 1 | . 1 Watcher 1 | . 1 Swarmer 6 | . 6 Grunt 11 | . 11 Best Kill Streak 4 | . 4 Combat Bots Only 4 | . 4 Max Kills in Single Turn 2 | . 2 Gunslinging 1 | . 1 Exploded . | . . Melee . | . . Uniques/NPCs Destroyed . | . . Combat | -11 -10 -------- Run | Scr Mat Damage Taken 1042 | . 1042 Core 260 | . 260 Absorbed by Shields . | . . Core Remaining (%) 100 | 100 . Volleys Fired 59 | . 59 Largest 2 | . 2 Hottest 112 | . 112 Shots Fired 94 | . 94 Gun 94 | . 94 Cannon . | . . Launcher . | . . Special . | . . Kinetic . | . . Thermal 94 | . 94 Explosive . | . . Electromagnetic . | . . Robot Hit Streak 10 | . 10 Robot Miss Streak 4 | . 4 Penetration Max . | . . Secondary Targets 4 | . 4 Max Gunslinging Chain 1 | . 1 Shots Hit Robots 62 | . 62 Core Hits 34 | . 34 Critical Hits . | . . Critical Kills . | . . Critical Parts Destroyed . | . . Melee Attacks . | . . Impact . | . . Slashing . | . . Piercing . | . . Sneak Attacks . | . . Combat Hostiles . | . . Follow-up Attacks . | . . Damage Inflicted 845 | . 845 Guns 834 | . 834 Cannons . | . . Explosions . | . . Melee . | . . Ramming 11 | . 11 Kinetic . | . . Thermal 834 | . 834 Explosive . | . . Electromagnetic . | . . Impact . | . . Slashing . | . . Piercing . | . . Highest Corruption . | . . Average Corruption . | . . Corruption Purged . | . . Overload Shots . | . . Overflow Damage . | . . Projectiles . | . . Explosions . | . . Melee . | . . Knockbacks 1 | . 1 Impact 1 | . 1 Kinetic . | . . Secondary . | . . Self-Inflicted Damage . | . . Shots . | . . Rammed 2 | . 2 Targets Rammed 4 | . 4 Kicked 2 | . 2 Crushed . | . . Highest Temperature 348 | . 348 Average Temperature 113 | . 113 Received Heat Transfer 402 | . 402 Effects 2 | . 2 Energy Bleed 2 | . 2 Siege Activations . | . . Robots Corrupted . | . . Combat Hostiles . | . . Parts Fried . | . . Impact Corruptions . | . . Robots Melted . | . . Combat Hostiles . | . . Parts Melted 4 | . 4 Heat Transferred 2023 | . 2023 Parts Sabotaged . | . . Parts Stolen . | . . Parts Stripped . | . . Power Chain Reactions . | . . Missiles Intercepted . | . . Alert | -11 -10 ------- Run | Scr Mat Peak Influence 172 | . 172 Average Influence 58 | . 62 Maximum Alert Level . | . . Low Security (%) 100 | 100 100 Level 1 . | . . Level 2 . | . . Level 3 . | . . Level 4 . | . . Level 5 . | . . High Security . | . . Max Security . | . . Squads Dispatched 3 | . 3 Investigation 2 | . 2 Extermination . | . . Reinforcement 1 | . 1 Assault . | . . Garrison . | . . Intercept . | . . Construction Impeded . | . . Haulers Reinforced . | . . Stealth | -11 -10 --------- Run | Scr Mat Distress Signals . | . . Communications Jammed . | . . Distress Signals . | . . Times Spotted 22 | . 22 Peak Tracking Total 4 | . 4 Tactical Retreats . | . . Traps | -11 -10 ------- Run | Scr Mat Traps Triggered 1 | . 1 Indirectly . | . . Trap Hack Attempts . | . . Triggered . | . . Disarmed . | . . Reprogrammed 6 | . 6 Reused . | . . Traps Extracted . | . . Installed . | . . Triggered . | . . Machines | -11 -10 ---------- Run | Scr Mat Machines Disabled . | . . Max in Single Turn . | . . Machines Sabotaged . | . . Garrisons Compromised . | . . Overloaded Fab Kills . | . . Fab Network Shutdowns . | . . Hacking | -11 -10 --------- Run | Scr Mat Machines Accessed 7 | . 7 Terminals 6 | . 6 Fabricators . | . . Repair Stations 1 | . 1 Recycling Units . | . . Scanalyzers . | . . Garrison Access . | . . Total Hacks 28 | . 28 Successful 22 | . 22 Failed 6 | . 6 Catastrophic . | . . Database Lockouts . | . . Manual . | . . Terminals 21 | . 21 Fabricators . | . . Repair Stations 7 | . 7 Recycling Units . | . . Scanalyzers . | . . Garrison Access . | . . Terminal Hacks 17 | . 17 Record 4 | . 4 Robot Analysis 1 | . 1 Prototype ID Bank 2 | . 2 Emergency Access Points 1 | . 1 Terminal Index 1 | . 1 Alert Level 1 | . 1 Locate Traps 1 | . 1 Reprogram Traps 1 | . 1 Dispatch Records 2 | . 2 Maintenance Status 2 | . 2 Zone Layout 1 | . 1 Fabricator Hacks . | . . Repair Station Hacks 5 | . 5 Scan Component 2 | . 2 Repair 2 | . 2 Refit 1 | . 1 Recycling Unit Hacks . | . . Scanalyzer . | . . Garrison Access Hacks . | . . Unauthorized Hacks . | . . Terminals . | . . Fabricators . | . . Repair Stations . | . . Recycling Units . | . . Scanalyzers . | . . Garrison Access . | . . Data Cores Recovered . | . . Used . | . . Hacking Detections 6 | . 6 Full Trace Events 2 | . 2 Feedback Events . | . . Feedback Blocked . | . . Robot Schematics Acquired . | . . Robots Built . | . . Matter . | . . Time . | . . Total Robot Build Rating . | . . Part Schematics Acquired . | . . Parts Built . | . . Matter . | . . Time . | . . Total Part Build Rating . | . . Parts Repaired 2 | . 2 Time 64 | . 64 Parts Recycled . | . . Recycled Matter . | . . Retrieved Matter . | . . Retrieved Components . | . . Parts Scanalyzed . | . . Part Schematics Acquired . | . . Parts Damaged . | . . Bothacking | -11 -10 ------------ Run | Scr Mat Used RIF Installer . | . . Robots Hacked . | . . Non-combat . | . . Combat . | . . Robot Hacks Applied . | . . Relay Couplers Released . | . . Robots Rewired . | . . Allies Hacked . | . . Hacks Repelled . | . . Allies | -11 -10 -------- Run | Scr Mat Total Allies . | . . Largest Group . | . . Highest-Rated Group . | . . Highest-Rated Ally . | . . Total Orders . | . . Ally Attacks . | . . Total Damage . | . . Kills . | . . Allies Corrupted . | . . Allies Melted . | . . Intel | -11 -10 ------- Run | Scr Mat Robot Analysis Total 1 | . 1 Derelict Logs Recovered . | . . Drone Launches . | . . Drone Recoveries . | . . Exploration | -11 -10 ------------- Run | Scr Mat Turns Passed 1300 | 76 1224 Spaces Moved 706 | 47 659 Core 115 | 47 68 Treads . | . . Legs 591 | . 591 Wheels . | . . Hover . | . . Flight . | . . Fastest Speed 50 | 50 120 Average Speed 148 | 132 150 Slowest Speed 400 | 200 400 Overloaded Moves . | . . Propulsion Burnouts . | . . Robots Hopped . | . . Cave-ins Triggered . | . . Exploration Rate (%) 41 | 3 80 Regions Visited 1 Branch Regions . Pre-discovered Areas . | . . Known Exits Taken . | . . Unknown Exits Taken 1 | 1 . Scrap Searched . | . . Spaces Dug . | . . Terrain Destroyed . | . . Melee . | . . Projectile . | . . AOE . | . . Actions | -11 -10 --------- Run | Scr Mat Total 862 | 61 801 Wait 43 | 1 42 Move 705 | 46 659 Hop . | . . Pick Up 26 | 8 18 Fast Attach 2 | . 2 Attach 14 | 6 8 Detach . | . . Swap 3 | . 3 Drop 6 | . 6 Fire 59 | . 59 Melee . | . . Ram . | . . Kick 4 | . 4 Crush . | . . Escape Stasis . | . . Rewire . | . . Trap . | . . Miscellaneous . | . . Route ------- -11/Scrapyard -10/Materials (discovered 4 exits: [*Mat x3] / [*Min]) History --------- Turn | Location | Event 7 | -11/Scrapyard | Discovered new exit (range 15) 77 | -11/Scrapyard | Entered Materials 261 | -10/Materials | Discovered new exit (range 7) 300 | -10/Materials | Build established: Mutant 541 | -10/Materials | Discovered new exit (range 16) 612 | -10/Materials | Core integrity fell below 50% 630 | -10/Materials | Lost 3 parts (1p2w) 731 | -10/Materials | Discovered new exit (range 13) 767 | -10/Materials | Repaired Beam Rifle 799 | -10/Materials | Repaired Beam Rifle 819 | -10/Materials | Discovered new exit (range 12) 1281 | -10/Materials | Core integrity fell below 20% 1301 | -10/Materials | Destroyed by G-47 Trooper with Particle Gun Last Messages --------------- Destroyed Flight Unit. Beam Rifle destroyed. Lgt. Ion Engine melted. S-10 Pest destroyed. Overheating: Energy bleed (-39). Overheating: Energy bleed (-41). R-06 Scavenger collects Flight Unit. Critical hit. Aluminum Leg destroyed. S-10 Pest destroyed. R-06 Scavenger collects Flight Unit. R-06 Scavenger collects Lgt. Assault Rifle. R-06 Scavenger collects Flight Unit. R-06 Scavenger collects Lgt. Assault Rifle. Aluminum Leg destroyed. Beam Rifle destroyed. Heat Sink melted. G-34 Mercenary destroyed. Switching to secondary target: G-47 Trooper. Beam Rifle destroyed. Map ----- +----------------------------------------------------+ | ??# ! # + #????????????# # "" | | ??# # ! # #????????????# # | | ??# # # #????????##### # | | ??# ! # # #????????# ^ # | | ??# # # #????????#^^^ # | | ?###+### # # #?########^^""" # | | # # ###### #?# # """ ###+ | | # # ###### #?# """ # """ | | # + #?# "R" # | | # # #?# " " # | | # # ###### #?# [ + ######## | | # # #????# #?# # #??????? | | #! # #????# ########## ######## | | # # #????# % # # | | # # #????# % # # | | # # #????# %%% / # | | # # #????#%%%########## # """ # | | # # ###### %%########## # """ # | | # # ##!! %# "T" # # """ # | | ######## ##! # # ######## | | ???????# ## # + ##"""""" | | ???????# ## # # ##" !"| | | ???????? ##!! ########## ##" | | ???????? ##! ^ | | ?????### ###### ^ < | | ????# [%@ | | ????# < g ######### | | ????# ][!k #???????####### | | ????######## ] #?????????????? | | ???????????# ]! #####?????????? | | ???????????# """ !!##???????### | | ???????????# """ !#???????# | | ???????????# """ " #???????# | | ??????????## """ T #???????# | | ???????????# """ " !#???????# | | ???????????# !!##???????# | | ???????????# #########???# | | ???????????# #######+#### #???# | | ???????????# ????# %=% # """ #???# | | ???????????# ?????#==""" # """ #???# | | ???????????# ??????# """ # """ ####### | | ???????????????????# """ # [ # | | ???????????????????# # """% + | | ???????????????????# *# """ %# | | ???????????????????###+#### """!!# | | ?????????????????????# #??# =*!# | | ?????????????????????# #??# """% # | | ?????????????????????#=#??# """ %# =* | | ?????????????????????#=#??# """ # * | | ?????????????????????# #??# # | +----------------------------------------------------+ Best States ------------- Heat Dissipation 25 Energy Generation 10 Energy Capacity 250 Matter Stores 300 Matter Capacity 300 Sight Range 16 Terrain Scan Density 10 Evasion (%) 50 Targeting Accuracy 5 Item Schematics ----------------- None Robot Schematics ------------------ None Fabricated ------------ Nothing Alien Tech Used ----------------- None Achievements -------------- None Challenges ------------ None Game ------ Seed RefineryPhasingWings Manual? 0 Play Time 00:11:43 Cumulative 4.0 hours Start 2020.01.06 @ 12:21:36 End 2020.01.06 @ 12:44:57 Sessions 1 Manual Loads 0 Difficulty Rogue Special Mode None Game No. 13 Rogue 13 Adventurer 0 Explorer 0 Win Type - Total 0 Types 0/0/0/0/0/0/0 Lore% 3 Gallery% 10 Achievement% 7 Wizard Run 0 Options --------- ASCII 0 Keyboard 0 Movement Numpad Keybinds 0 Fullscreen 1 Font 18/SmallcapsGlow Map View 76x50 Tactical HUD 0 Map Filters NONE Filters NONE Steam 1 RUN: 4c9002b7-c91b-4c7c-9990-605f84d28cf5